[Event "NJSK 2026 Meisjes B"]
[Site "Helmond, Netherlands"]
[Date "2026.04.28"]
[Round "4.3"]
[White "Koorevaar, Sarah-Joy"]
[Black "Hardeman, Imara"]
[Result "1/2-1/2"]
[TimeControl "90min/40moves + 30min + 30sec/move"]
[WhiteTitle "-"]
[BlackTitle "-"]
[WhiteFideId "1091174"]
[BlackFideId "40100596"]
[WhiteElo "1768"]
[BlackElo "1718"]

1. d4 {[%clk 01:30:59]} {[%emt 00:00:01]} d5 {[%clk 01:30:49]} {[%emt
00:00:10]} 2. Nf3 {[%clk 01:31:25]} {[%emt 00:00:04]} Nf6 {[%clk 01:31:11]}
{[%emt 00:00:08]} 3. g3 {[%clk 01:31:52]} {[%emt 00:00:04]} c6 {[%clk
01:31:36]} {[%emt 00:00:05]} 4. Bg2 {[%clk 01:32:18]} {[%emt 00:00:03]} Bf5
{[%clk 01:31:33]} {[%emt 00:00:33]} 5. c4 {[%clk 01:32:41]} {[%emt 00:00:07]}
e6 {[%clk 01:31:55]} {[%emt 00:00:07]} 6. Nc3 {[%clk 01:33:07]} {[%emt
00:00:05]} Nbd7 {[%clk 01:32:08]} {[%emt 00:00:17]} 7. Qb3 {[%clk 01:33:22]}
{[%emt 00:00:15]} Qb6 {[%clk 01:32:24]} {[%emt 00:00:14]} 8. c5 {[%clk
01:33:48]} {[%emt 00:00:05]} Qc7 {[%clk 01:32:51]} {[%emt 00:00:02]} 9. O-O
{[%clk 01:27:29]} {[%emt 00:06:48]} h6 {[%clk 01:33:09]} {[%emt 00:00:13]} 10.
Nd2 {[%clk 01:27:05]} {[%emt 00:00:55]} Be7 {[%clk 01:33:18]} {[%emt 00:00:20]}
11. e4 {[%clk 01:26:27]} {[%emt 00:01:08]} dxe4 {[%clk 01:33:44]} {[%emt
00:00:05]} 12. Ndxe4 {[%clk 01:26:48]} {[%emt 00:00:09]} Nxe4 {[%clk 01:33:49]}
{[%emt 00:00:24]} 13. Nxe4 {[%clk 01:27:16]} {[%emt 00:00:02]} Bxe4 {[%clk
01:22:46]} {[%emt 00:11:33]} 14. Bxe4 {[%clk 01:27:43]} {[%emt 00:00:02]} e5
{[%clk 01:18:19]} {[%emt 00:04:58]} 15. Re1 {[%clk 01:20:26]} {[%emt 00:07:46]}
O-O {[%clk 01:04:02]} {[%emt 00:14:47]} 16. Bc2 {[%clk 01:14:48]} {[%emt
00:06:09]} Rfe8 {[%clk 00:58:38]} {[%emt 00:05:54]} 17. Qd3 {[%clk 01:14:09]}
{[%emt 00:01:08]} e4 {[%clk 00:51:10]} {[%emt 00:08:00]} 18. Qxe4 {[%clk
01:06:00]} {[%emt 00:08:38]} Nf6 {[%clk 00:51:14]} {[%emt 00:00:26]} 19. Qd3
{[%clk 01:05:27]} {[%emt 00:01:03]} Qd7 {[%clk 00:41:51]} {[%emt 00:09:54]} 20.
Bf4 {[%clk 00:58:25]} {[%emt 00:07:31]} Rad8 {[%clk 00:37:33]} {[%emt
00:04:49]} 21. Rad1 {[%clk 00:56:44]} {[%emt 00:02:10]} h5 {[%clk 00:29:19]}
{[%emt 00:08:44]} 22. Qf5 {[%clk 00:50:05]} {[%emt 00:07:09]} Qxf5 {[%clk
00:28:01]} {[%emt 00:01:48]} 23. Bxf5 {[%clk 00:50:33]} {[%emt 00:00:02]} Nd5
{[%clk 00:27:57]} {[%emt 00:00:34]} 24. Bd2 {[%clk 00:40:08]} {[%emt 00:10:57]}
Bf6 {[%clk 00:23:49]} {[%emt 00:04:39]} 25. Be3 {[%clk 00:35:59]} {[%emt
00:04:39]} g6 {[%clk 00:21:18]} {[%emt 00:03:01]} 26. Bc2 {[%clk 00:34:55]}
{[%emt 00:01:33]} Rd7 {[%clk 00:19:52]} {[%emt 00:01:56]} 27. Bb3 {[%clk
00:22:30]} {[%emt 00:12:55]} Red8 {[%clk 00:18:29]} {[%emt 00:01:54]} 28. Kg2
{[%clk 00:15:04]} {[%emt 00:07:54]} Ne7 {[%clk 00:16:05]} {[%emt 00:02:56]} 29.
Bc2 {[%clk 00:13:21]} {[%emt 00:02:13]} Nd5 {[%clk 00:15:59]} {[%emt 00:00:35]}
30. Bb3 {[%clk 00:11:42]} {[%emt 00:02:09]} 1/2-1/2

[Event "NJSK 2026 Meisjes B"]
[Site "Helmond, Netherlands"]
[Date "2026.04.28"]
[Round "4.4"]
[White "Regterschot, Frederieke"]
[Black "Omnes, Zoe"]
[Result "1-0"]
[TimeControl "90min/40moves + 30min + 30sec/move"]
[WhiteTitle "-"]
[BlackTitle "-"]
[WhiteFideId "1083961"]
[BlackFideId "1095200"]
[WhiteElo "1792"]
[BlackElo "1485"]

1. e4 {[%clk 01:30:57]} {[%emt 00:00:03]} e5 {[%clk 01:30:40]} {[%emt
00:00:19]} 2. Nf3 {[%clk 01:31:24]} {[%emt 00:00:04]} Nc6 {[%clk 01:31:01]}
{[%emt 00:00:08]} 3. Bc4 {[%clk 01:31:49]} {[%emt 00:00:06]} Nf6 {[%clk
01:31:07]} {[%emt 00:00:23]} 4. d3 {[%clk 01:32:13]} {[%emt 00:00:07]} Bc5
{[%clk 01:31:10]} {[%emt 00:00:26]} 5. h3 {[%clk 01:32:25]} {[%emt 00:00:18]}
h6 {[%clk 01:30:57]} {[%emt 00:00:42]} 6. O-O {[%clk 01:31:59]} {[%emt
00:00:57]} d6 {[%clk 01:31:05]} {[%emt 00:00:22]} 7. Nc3 {[%clk 01:31:49]}
{[%emt 00:00:40]} O-O {[%clk 01:30:37]} {[%emt 00:00:57]} 8. Na4 {[%clk
01:31:42]} {[%emt 00:00:38]} Na5 {[%clk 01:21:47]} {[%emt 00:09:21]} 9. Nxc5
{[%clk 01:22:31]} {[%emt 00:09:41]} Nxc4 {[%clk 01:21:52]} {[%emt 00:00:25]} 10.
b3 {[%clk 01:16:10]} {[%emt 00:06:52]} Nb6 {[%clk 01:20:06]} {[%emt 00:02:15]}
11. Na4 {[%clk 01:16:30]} {[%emt 00:00:10]} Nxa4 {[%clk 01:19:57]} {[%emt
00:00:38]} 12. bxa4 {[%clk 01:16:59]} {[%emt 00:00:02]} b6 {[%clk 01:19:10]}
{[%emt 00:01:16]} 13. Bd2 {[%clk 01:17:16]} {[%emt 00:00:14]} a5 {[%clk
01:18:37]} {[%emt 00:01:02]} 14. Rb1 {[%clk 01:17:12]} {[%emt 00:00:34]} Re8
{[%clk 01:13:26]} {[%emt 00:05:42]} 15. Re1 {[%clk 01:17:31]} {[%emt 00:00:10]}
Qe7 {[%clk 01:09:54]} {[%emt 00:04:01]} 16. c3 {[%clk 01:14:31]} {[%emt
00:03:32]} Qd7 {[%clk 01:05:38]} {[%emt 00:04:43]} 17. Nh4 {[%clk 01:01:50]}
{[%emt 00:13:14]} Bb7 {[%clk 01:00:38]} {[%emt 00:05:29]} 18. Qf3 {[%clk
00:59:25]} {[%emt 00:02:55]} Qe6 {[%clk 00:59:53]} {[%emt 00:01:09]} 19. c4
{[%clk 00:56:21]} {[%emt 00:03:41]} Nd7 {[%clk 00:56:42]} {[%emt 00:03:41]} 20.
Be3 {[%clk 00:50:46]} {[%emt 00:06:05]} Bc6 {[%clk 00:53:08]} {[%emt 00:04:03]}
21. Qd1 {[%clk 00:49:40]} {[%emt 00:01:36]} Nc5 {[%clk 00:48:30]} {[%emt
00:05:08]} 22. Bxc5 {[%clk 00:49:54]} {[%emt 00:00:17]} dxc5 {[%clk 00:48:47]}
{[%emt 00:00:13]} 23. Re3 {[%clk 00:48:22]} {[%emt 00:02:01]} Rad8 {[%clk
00:46:46]} {[%emt 00:02:31]} 24. Nf5 {[%clk 00:46:27]} {[%emt 00:02:26]} Kh7
{[%clk 00:45:32]} {[%emt 00:01:41]} 25. Qh5 {[%clk 00:34:48]} {[%emt 00:12:12]}
Qg6 {[%clk 00:43:59]} {[%emt 00:01:59]} 26. Qd1 {[%clk 00:33:13]} {[%emt
00:02:09]} Qf6 {[%clk 00:43:10]} {[%emt 00:01:13]} 27. Rb2 {[%clk 00:28:56]}
{[%emt 00:04:55]} g6 {[%clk 00:42:52]} {[%emt 00:00:47]} 28. Ng3 {[%clk
00:29:17]} {[%emt 00:00:09]} Qe6 {[%clk 00:39:06]} {[%emt 00:04:13]} 29. Ne2
{[%clk 00:28:12]} {[%emt 00:01:39]} Rd6 {[%clk 00:35:02]} {[%emt 00:04:31]} 30.
Nc3 {[%clk 00:26:04]} {[%emt 00:02:41]} Red8 {[%clk 00:30:57]} {[%emt
00:04:31]} 31. Rd2 {[%clk 00:23:10]} {[%emt 00:03:27]} Qd7 {[%clk 00:28:53]}
{[%emt 00:02:29]} 32. Nb5 {[%clk 00:16:02]} {[%emt 00:07:44]} Bxb5 {[%clk
00:28:55]} {[%emt 00:00:28]} 33. axb5 {[%clk 00:16:30]} {[%emt 00:00:02]} Kg7
{[%clk 00:25:59]} {[%emt 00:03:26]} 34. Kh2 {[%clk 00:16:26]} {[%emt 00:00:34]}
Rf6 {[%clk 00:24:04]} {[%emt 00:02:23]} 35. Rg3 {[%clk 00:13:04]} {[%emt
00:03:53]} Qd4 {[%clk 00:20:59]} {[%emt 00:03:34]} 36. Qe2 {[%clk 00:09:35]}
{[%emt 00:04:01]} Rdd6 {[%clk 00:16:23]} {[%emt 00:05:05]} 37. Re3 {[%clk
00:06:51]} {[%emt 00:03:16]} Rde6 {[%clk 00:10:23]} {[%emt 00:06:28]} 38. h4
{[%clk 00:05:33]} {[%emt 00:01:49]} Rd6 {[%clk 00:07:03]} {[%emt 00:03:50]} 39.
g3 {[%clk 00:02:11]} {[%emt 00:03:52]} h5 {[%clk 00:02:23]} {[%emt 00:05:10]}
40. f3 {[%clk 00:01:40]} {[%emt 00:01:01]} Rde6 {[%clk 00:00:32]} {[%emt
00:02:21]} 41. Qf2 {[%clk 00:00:54]} {[%emt 00:01:15]} Qd6 {[%clk 00:29:50]}
{[%emt 00:01:11]} 42. Kg2 {[%clk 00:29:08]} {[%emt 00:02:18]} Re7 {[%clk
00:28:01]} {[%emt 00:02:20]} 43. Re1 {[%clk 00:28:26]} {[%emt 00:01:11]} Qd4
{[%clk 00:27:41]} {[%emt 00:00:49]} 44. Qxd4 {[%clk 00:26:55]} {[%emt
00:02:02]} cxd4 {[%clk 00:27:11]} {[%emt 00:01:00]} 45. Rb1 {[%clk 00:26:54]}
{[%emt 00:00:31]} Ree6 {[%clk 00:22:46]} {[%emt 00:04:55]} 46. Rc2 {[%clk
00:26:16]} {[%emt 00:01:08]} Kh6 {[%clk 00:21:58]} {[%emt 00:01:18]} 47. c5
{[%clk 00:25:46]} {[%emt 00:01:01]} c6 {[%clk 00:20:45]} {[%emt 00:01:42]} 48.
cxb6 {[%clk 00:23:42]} {[%emt 00:02:34]} c5 {[%clk 00:20:46]} {[%emt 00:00:29]}
49. Rxc5 {[%clk 00:23:18]} {[%emt 00:00:54]} Rxb6 {[%clk 00:20:57]} {[%emt
00:00:19]} 50. Rxe5 {[%clk 00:22:32]} {[%emt 00:01:15]} Rfe6 {[%clk 00:18:24]}
{[%emt 00:03:04]} 51. Rd5 {[%clk 00:22:12]} {[%emt 00:00:50]} a4 {[%clk
00:16:51]} {[%emt 00:02:04]} 52. Rxd4 {[%clk 00:21:48]} {[%emt 00:00:53]} a3
{[%clk 00:16:34]} {[%emt 00:00:47]} 53. Ra4 {[%clk 00:22:06]} {[%emt 00:00:12]}
Re5 {[%clk 00:16:54]} {[%emt 00:00:09]} 54. Rxa3 {[%clk 00:22:27]} {[%emt
00:00:10]} Rexb5 {[%clk 00:17:07]} {[%emt 00:00:17]} 55. Rxb5 {[%clk 00:22:37]}
{[%emt 00:00:20]} Rxb5 {[%clk 00:17:24]} {[%emt 00:00:13]} 56. Rb3 {[%clk
00:23:06]} {[%emt 00:00:01]} Rc5 {[%clk 00:17:07]} {[%emt 00:00:47]} 57. Rb2
{[%clk 00:23:31]} {[%emt 00:00:06]} Rc3 {[%clk 00:17:23]} {[%emt 00:00:13]} 58.
d4 {[%clk 00:23:57]} {[%emt 00:00:05]} Rd3 {[%clk 00:16:52]} {[%emt 00:01:00]}
59. d5 {[%clk 00:24:26]} {[%emt 00:00:02]} f5 {[%clk 00:17:06]} {[%emt
00:00:15]} 60. Kf2 {[%clk 00:24:00]} {[%emt 00:00:56]} fxe4 {[%clk 00:16:32]}
{[%emt 00:01:04]} 61. fxe4 {[%clk 00:24:27]} {[%emt 00:00:03]} Kg7 {[%clk
00:16:52]} {[%emt 00:00:10]} 62. Re2 {[%clk 00:24:34]} {[%emt 00:00:24]} Kf6
{[%clk 00:16:35]} {[%emt 00:00:46]} 63. e5+ {[%clk 00:24:54]} {[%emt 00:00:11]}
Ke7 {[%clk 00:16:49]} {[%emt 00:00:15]} 64. d6+ {[%clk 00:25:15]} {[%emt
00:00:09]} Ke6 {[%clk 00:16:51]} {[%emt 00:00:28]} 65. Re3 {[%clk 00:24:11]}
{[%emt 00:01:34]} Rd2+ {[%clk 00:17:03]} {[%emt 00:00:18]} 66. Kf3 {[%clk
00:24:18]} {[%emt 00:00:23]} Rxa2 {[%clk 00:17:02]} {[%emt 00:00:31]} 67. Kf4
{[%clk 00:24:27]} {[%emt 00:00:20]} Ra8 {[%clk 00:16:55]} {[%emt 00:00:36]} 68.
Kg5 {[%clk 00:24:43]} {[%emt 00:00:15]} Rg8 {[%clk 00:16:52]} {[%emt 00:00:33]}
69. Kh6 {[%clk 00:24:46]} {[%emt 00:00:27]} g5 {[%clk 00:13:40]} {[%emt
00:03:42]} 70. hxg5 {[%clk 00:25:09]} {[%emt 00:00:07]} Kf5 {[%clk 00:11:58]}
{[%emt 00:02:12]} 71. g6 {[%clk 00:23:56]} {[%emt 00:01:44]} Rxg6+ {[%clk
00:12:06]} {[%emt 00:00:21]} 72. Kxh5 {[%clk 00:24:18]} {[%emt 00:00:08]} Rg7
{[%clk 00:11:39]} {[%emt 00:00:55]} 73. g4+ {[%clk 00:24:46]} {[%emt 00:00:04]}
Kf4 {[%clk 00:10:40]} {[%emt 00:01:28]} 74. Re1 {[%clk 00:25:07]} {[%emt
00:00:09]} Rg8 {[%clk 00:09:58]} {[%emt 00:01:12]} 75. d7 {[%clk 00:25:11]}
{[%emt 00:00:27]} Rh8+ {[%clk 00:09:18]} {[%emt 00:01:09]} 76. Kg6 {[%clk
00:25:27]} {[%emt 00:00:15]} Rg8+ {[%clk 00:06:25]} {[%emt 00:03:22]} 77. Kf7
{[%clk 00:25:56]} {[%emt 00:00:02]} Ra8 {[%clk 00:06:13]} {[%emt 00:00:40]} 78.
Ke7 {[%clk 00:26:15]} {[%emt 00:00:13]} Ra7 {[%clk 00:06:22]} {[%emt 00:00:22]}
79. Ke8 {[%clk 00:26:39]} {[%emt 00:00:05]} Ra8+ {[%clk 00:06:11]} {[%emt
00:00:41]} 80. d8=Q {[%emt 00:00:10]} Rxd8+ {[%clk 00:06:22]} {[%emt 00:00:09]}
81. Kxd8 {[%clk 00:27:37]} {[%emt 00:00:02]} Kxg4 {[%clk 00:06:23]} {[%emt
00:00:28]} 82. e6 {[%clk 00:27:53]} {[%emt 00:00:15]} Kf3 {[%clk 00:06:37]}
{[%emt 00:00:15]} 83. e7 {[%clk 00:28:15]} {[%emt 00:00:09]} Kf2 {[%clk
00:06:47]} {[%emt 00:00:20]} 84. e8=Q {[%clk 00:28:37]} {[%emt 00:00:09]} Kf3
{[%clk 00:06:52]} {[%emt 00:00:24]} 85. Re7 {[%clk 00:29:04]} {[%emt 00:00:03]}
Kg4 {[%clk 00:07:00]} {[%emt 00:00:23]} 86. Qf8 {[%clk 00:29:26]} {[%emt
00:00:07]} Kg5 {[%clk 00:06:59]} {[%emt 00:00:31]} 87. Rg7+ {[%clk 00:29:50]}
{[%emt 00:00:06]} Kh6 {[%clk 00:07:10]} {[%emt 00:00:19]} 88. Qh8# {[%clk
00:30:14]} {[%emt 00:00:06]} 1-0

[Event "NJSK 2026 Meisjes B"]
[Site "Helmond, Netherlands"]
[Date "2026.04.29"]
[Round "5.2"]
[White "Hardeman, Imara"]
[Black "Regterschot, Frederieke"]
[Result "1-0"]
[TimeControl "90min/40moves + 30min + 30sec/move"]
[WhiteTitle "-"]
[BlackTitle "-"]
[WhiteFideId "40100596"]
[BlackFideId "1083961"]
[WhiteElo "1718"]
[BlackElo "1792"]

1. d4 {[%clk 01:30:59]} d5 {[%clk 01:30:56]} {[%emt 00:00:05]} 2. Bf4 {[%clk
01:31:26]} {[%emt 00:00:04]} Nf6 {[%clk 01:31:15]} {[%emt 00:00:11]} 3. e3
{[%clk 01:31:51]} {[%emt 00:00:04]} c5 {[%clk 01:31:28]} {[%emt 00:00:18]} 4.
c3 {[%clk 01:28:47]} {[%emt 00:03:34]} Nc6 {[%clk 01:30:24]} {[%emt 00:01:33]}
5. h3 {[%clk 01:27:33]} {[%emt 00:01:44]} Bf5 {[%clk 01:29:46]} {[%emt
00:01:08]} 6. g4 {[%clk 01:24:19]} {[%emt 00:03:43]} Bg6 {[%clk 01:29:35]}
{[%emt 00:00:42]} 7. Nd2 {[%clk 01:14:51]} {[%emt 00:09:58]} c4 {[%clk
01:25:31]} {[%emt 00:04:34]} 8. h4 {[%clk 01:09:55]} {[%emt 00:05:26]} h5
{[%emt 00:03:34]} 9. g5 {[%clk 01:10:00]} Nd7 {[%clk 01:17:16]} {[%emt
00:06:05]} 10. e4 {[%clk 01:02:50]} {[%emt 00:07:41]} e6 {[%clk 01:11:47]}
{[%emt 00:05:58]} 11. Bg2 {[%clk 00:59:42]} {[%emt 00:03:38]} Nb6 {[%clk
01:09:13]} {[%emt 00:03:04]} 12. Ne2 {[%clk 00:56:08]} {[%emt 00:04:04]} dxe4
{[%clk 01:04:56]} {[%emt 00:04:47]} 13. Bxe4 {[%clk 00:55:10]} {[%emt
00:01:28]} Bxe4 {[%clk 01:04:58]} {[%emt 00:00:29]} 14. Nxe4 {[%clk 00:55:32]}
{[%emt 00:00:08]} Nd5 {[%clk 01:04:10]} {[%emt 00:01:17]} 15. Bg3 {[%clk
00:54:20]} {[%emt 00:01:39]} b5 {[%clk 00:57:10]} {[%emt 00:07:34]} 16. Nf4
{[%clk 00:43:06]} {[%emt 00:11:44]} Nxf4 {[%clk 00:55:25]} {[%emt 00:02:15]} 17.
Bxf4 {[%clk 00:43:28]} {[%emt 00:00:08]} Be7 {[%clk 00:51:54]} {[%emt
00:04:01]} 18. Ng3 {[%clk 00:40:35]} {[%emt 00:03:23]} Qd5 {[%clk 00:43:39]}
{[%emt 00:08:45]} 19. Qe2 {[%clk 00:34:47]} {[%emt 00:06:19]} g6 {[%clk
00:35:23]} {[%emt 00:08:45]} 20. Qe4 {[%clk 00:31:20]} {[%emt 00:03:57]} Rd8
{[%clk 00:29:58]} {[%emt 00:05:55]} 21. O-O {[%clk 00:26:23]} {[%emt 00:05:27]}
Bd6 {[%clk 00:28:26]} {[%emt 00:02:03]} 22. Bxd6 {[%clk 00:26:22]} {[%emt
00:00:30]} Rxd6 {[%clk 00:28:32]} {[%emt 00:00:24]} 23. Rfe1 {[%clk 00:26:33]}
{[%emt 00:00:19]} O-O {[%clk 00:26:13]} {[%emt 00:02:49]} 24. Re3 {[%clk
00:23:57]} {[%emt 00:03:07]} Rfd8 {[%clk 00:23:18]} {[%emt 00:03:25]} 25. Qf4
{[%clk 00:22:28]} {[%emt 00:01:57]} f5 {[%clk 00:18:08]} {[%emt 00:05:42]} 26.
gxf6 {[%clk 00:21:01]} {[%emt 00:01:56]} R6d7 {[%clk 00:14:37]} {[%emt
00:04:01]} 27. Qh6 {[%clk 00:18:02]} {[%emt 00:03:29]} Rh7 {[%clk 00:14:13]}
{[%emt 00:00:55]} 28. Qxg6+ {[%clk 00:18:13]} {[%emt 00:00:19]} 1-0

[Event "NJSK 2026 Meisjes B"]
[Site "Helmond, Netherlands"]
[Date "2026.04.29"]
[Round "5.3"]
[White "Jorritsma, Eli Alia"]
[Black "Koorevaar, Sarah-Joy"]
[Result "1/2-1/2"]
[TimeControl "90min/40moves + 30min + 30sec/move"]
[WhiteTitle "-"]
[BlackTitle "-"]
[WhiteFideId "1080849"]
[BlackFideId "1091174"]
[WhiteElo "1861"]
[BlackElo "1768"]

1. Nf3 {[%clk 01:30:58]} {[%emt 00:00:02]} d5 {[%clk 01:30:53]} {[%emt
00:00:06]} 2. g3 {[%clk 01:31:25]} {[%emt 00:00:03]} Nf6 {[%clk 01:31:11]}
{[%emt 00:00:12]} 3. Bg2 {[%clk 01:31:50]} {[%emt 00:00:05]} c6 {[%clk
01:31:34]} {[%emt 00:00:08]} 4. O-O {[%clk 01:32:12]} {[%emt 00:00:07]} e6
{[%clk 01:31:42]} {[%emt 00:00:23]} 5. b3 {[%clk 01:32:25]} {[%emt 00:00:17]}
Nbd7 {[%clk 01:31:42]} {[%emt 00:00:30]} 6. c4 {[%clk 01:32:23]} {[%emt
00:00:32]} Bd6 {[%clk 01:31:25]} {[%emt 00:00:46]} 7. Nc3 {[%clk 01:32:08]}
{[%emt 00:00:45]} O-O {[%clk 01:29:56]} {[%emt 00:02:00]} 8. d4 {[%clk
01:30:41]} {[%emt 00:01:57]} b6 {[%clk 01:25:27]} {[%emt 00:04:59]} 9. e4
{[%clk 01:24:09]} {[%emt 00:07:02]} Bb4 {[%clk 01:20:39]} {[%emt 00:05:17]} 10.
Ne2 {[%clk 01:09:43]} {[%emt 00:14:56]} Nxe4 {[%clk 01:18:58]} {[%emt
00:02:11]} 11. Ne5 {[%clk 01:05:29]} {[%emt 00:04:44]} Nxe5 {[%clk 01:00:20]}
{[%emt 00:19:08]} 12. dxe5 {[%clk 01:06:25]} {[%emt 00:00:05]} Nc3 {[%clk
01:00:43]} {[%emt 00:00:37]} 13. Qc2 {[%clk 01:04:54]} {[%emt 00:02:00]} Nxe2+
{[%clk 00:59:52]} {[%emt 00:01:22]} 1/2-1/2

[Event "NJSK 2026 Meisjes B"]
[Site "Helmond, Netherlands"]
[Date "2026.04.30"]
[Round "6.3"]
[White "Regterschot, Frederieke"]
[Black "Jorritsma, Eli Alia"]
[Result "1/2-1/2"]
[TimeControl "90min/40moves + 30min + 30sec/move"]
[WhiteTitle "-"]
[BlackTitle "-"]
[WhiteFideId "1083961"]
[BlackFideId "1080849"]
[WhiteElo "1792"]
[BlackElo "1861"]

1. d4 {[%clk 01:30:57]} {[%emt 00:00:03]} f5 {[%clk 01:30:53]} {[%emt
00:00:07]} 2. Nf3 {[%clk 01:31:20]} {[%emt 00:00:07]} Nf6 {[%clk 01:31:17]}
{[%emt 00:00:06]} 3. c4 {[%clk 01:31:44]} {[%emt 00:00:08]} e6 {[%clk
01:31:43]} {[%emt 00:00:03]} 4. Nc3 {[%clk 01:32:08]} {[%emt 00:00:06]} Be7
{[%clk 01:32:04]} {[%emt 00:00:09]} 5. e3 {[%clk 01:32:21]} {[%emt 00:00:18]}
O-O {[%clk 01:32:11]} {[%emt 00:00:22]} 6. Bd3 {[%clk 01:32:44]} {[%emt
00:00:06]} b6 {[%clk 01:30:03]} {[%emt 00:02:40]} 7. O-O {[%clk 01:30:58]}
{[%emt 00:02:15]} Bb7 {[%clk 01:30:28]} {[%emt 00:00:05]} 8. Re1 {[%clk
01:31:09]} {[%emt 00:00:19]} Ne4 {[%clk 01:29:32]} {[%emt 00:01:26]} 9. Nd2
{[%clk 01:30:09]} {[%emt 00:01:29]} d5 {[%clk 01:27:27]} {[%emt 00:02:35]} 10.
Ndxe4 {[%clk 01:29:39]} {[%emt 00:01:01]} fxe4 {[%clk 01:27:34]} {[%emt
00:00:23]} 11. Bc2 {[%clk 01:28:32]} {[%emt 00:01:37]} Bd6 {[%clk 01:17:52]}
{[%emt 00:10:10]} 12. Ne2 {[%clk 01:27:40]} {[%emt 00:01:22]} Qf6 {[%clk
01:13:18]} {[%emt 00:05:02]} 13. Rf1 {[%clk 01:27:42]} {[%emt 00:00:29]} Nc6
{[%clk 01:10:50]} {[%emt 00:02:58]} 14. a3 {[%clk 01:26:52]} {[%emt 00:01:20]}
Ne7 {[%clk 01:09:26]} {[%emt 00:01:54]} 15. Ng3 {[%clk 01:24:58]} {[%emt
00:02:24]} Nf5 {[%clk 01:08:18]} {[%emt 00:01:38]} 16. Nxf5 {[%clk 01:21:01]}
{[%emt 00:04:27]} exf5 {[%clk 01:06:46]} {[%emt 00:02:03]} 17. cxd5 {[%clk
01:20:04]} {[%emt 00:01:27]} Bxd5 {[%clk 01:07:07]} {[%emt 00:00:08]} 18. Bd2
{[%clk 01:16:40]} {[%emt 00:03:55]} Qh4 {[%clk 01:04:33]} {[%emt 00:03:03]} 19.
h3 {[%clk 01:16:39]} {[%emt 00:00:32]} a5 {[%clk 01:03:52]} {[%emt 00:01:11]}
20. Bb3 {[%clk 01:16:16]} {[%emt 00:00:52]} Bf7 {[%clk 01:03:08]} {[%emt
00:01:14]} 21. Be1 {[%clk 01:08:24]} {[%emt 00:08:23]} Qh6 {[%clk 01:00:17]}
{[%emt 00:03:18]} 22. Bxf7+ {[%clk 01:05:48]} {[%emt 00:03:08]} Rxf7 {[%clk
01:00:41]} {[%emt 00:00:06]} 23. Qb3 {[%clk 01:05:51]} {[%emt 00:00:27]} Raf8
{[%clk 00:56:39]} {[%emt 00:04:31]} 24. f3 {[%clk 01:03:27]} {[%emt 00:02:55]}
a4 {[%clk 00:46:29]} {[%emt 00:10:41]} 25. Qc3 {[%clk 00:58:00]} {[%emt
00:05:56]} Re7 {[%clk 00:45:58]} {[%emt 00:01:00]} 26. Bd2 {[%clk 00:56:27]}
{[%emt 00:02:04]} Qg5 {[%clk 00:40:18]} {[%emt 00:06:09]} 27. f4 {[%clk
00:54:38]} {[%emt 00:02:21]} Qh6 {[%clk 00:40:14]} {[%emt 00:00:31]} 28. Qc4+
{[%clk 00:54:21]} {[%emt 00:00:49]} Re6 {[%clk 00:39:39]} {[%emt 00:01:04]} 29.
Qxa4 {[%clk 00:54:06]} {[%emt 00:00:46]} g5 {[%clk 00:38:36]} {[%emt 00:01:34]}
30. Qb3 {[%clk 00:51:18]} {[%emt 00:03:17]} gxf4 {[%clk 00:37:34]} {[%emt
00:01:33]} 31. exf4 {[%clk 00:50:50]} {[%emt 00:00:57]} Kh8 {[%clk 00:35:49]}
{[%emt 00:02:14]} 32. Rae1 {[%clk 00:47:05]} {[%emt 00:04:17]} Rg6 {[%clk
00:34:18]} {[%emt 00:01:59]} 33. d5 {[%clk 00:43:25]} {[%emt 00:04:12]} Qh4
{[%clk 00:32:30]} {[%emt 00:02:15]} 34. Kh2 {[%clk 00:39:39]} {[%emt 00:04:18]}
Re8 {[%clk 00:30:19]} {[%emt 00:02:38]} 35. g3 {[%clk 00:26:20]} {[%emt
00:13:52]} Qh5 {[%clk 00:29:19]} {[%emt 00:01:27]} 36. Bc3+ {[%clk 00:18:24]}
{[%emt 00:08:29]} Kg8 {[%clk 00:29:37]} {[%emt 00:00:11]} 37. Bd4 {[%clk
00:17:44]} {[%emt 00:01:11]} Rh6 {[%clk 00:22:38]} {[%emt 00:07:28]} 38. h4
{[%clk 00:16:32]} {[%emt 00:01:43]} Qg4 {[%clk 00:20:04]} {[%emt 00:03:03]} 39.
Rc1 {[%clk 00:12:07]} {[%emt 00:04:56]} Kf7 {[%clk 00:12:49]} {[%emt 00:07:45]}
40. Rc2 {[%clk 00:02:16]} {[%emt 00:10:21]} Rg8 {[%clk 00:10:08]} {[%emt
00:03:11]} 41. Be5 {[%clk 00:00:32]} {[%emt 00:02:14]} Rc8 {[%clk 00:27:46]}
{[%emt 00:12:50]} 42. Rfc1 {[%clk 00:25:59]} {[%emt 00:05:04]} Bc5 {[%clk
00:22:28]} {[%emt 00:05:49]} 43. d6+ {[%emt 00:10:51]} Kf8 {[%emt 00:00:34]} 44.
Qc3 {[%clk 00:12:16]} {[%emt 00:02:48]} cxd6 {[%clk 00:19:25]} {[%emt
00:03:33]} 45. Bd4 {[%clk 00:11:58]} {[%emt 00:00:48]} Ke7 {[%clk 00:12:45]}
{[%emt 00:07:10]} 46. b4 {[%clk 00:07:23]} {[%emt 00:05:05]} Bxd4 {[%clk
00:12:50]} {[%emt 00:00:25]} 47. Qxc8 {[%clk 00:06:57]} {[%emt 00:00:56]} Rxh4+
{[%clk 00:12:52]} {[%emt 00:00:28]} 48. gxh4 {[%clk 00:06:18]} {[%emt
00:01:09]} Qxh4+ {[%clk 00:12:46]} {[%emt 00:00:36]} 49. Kg2 {[%clk 00:06:42]}
{[%emt 00:00:05]} Qg4+ {[%clk 00:13:08]} {[%emt 00:00:08]} 50. Kh2 {[%clk
00:03:43]} {[%emt 00:03:29]} Qh4+ {[%clk 00:13:15]} {[%emt 00:00:23]} 51. Kg2
{[%clk 00:04:10]} {[%emt 00:00:04]} Qg4+ {[%clk 00:13:39]} {[%emt 00:00:06]}
1/2-1/2